bitfinex-derivatives/quotes_BTCF0:USTF0_20250805
["timestamp","ask_amount","ask_price","bid_price","bid_amount"]
[1754400589317,0.21357,114260.0,114250.0,0.64721811]
[1754400591818,0.21357,114260.0,114250.0,0.18383117]
[1754400592019,0.21357,114260.0,114250.0,0.64721811]
[1754400593520,0.21357,114260.0,114250.0,0.63843444]
[1754400595414,0.21357,114260.0,114250.0,0.1750475]
[1754400595616,0.21357,114260.0,114250.0,0.63843444]
[1754400596318,0.21357,114260.0,114250.0,1.25407444]
[1754400596523,0.21357,114260.0,114250.0,1.25403444]
[1754400597519,0.21457,114260.0,114250.0,1.25403444]
[1754400598320,0.3896022,114260.0,114250.0,1.25399444]
[1754400599222,0.21457,114260.0,114250.0,1.25399444]
[1754400599824,0.3896022,114260.0,114250.0,1.25399444]
[1754400600320,0.3896022,114260.0,114250.0,1.25391444]
[1754400600721,0.3896022,114260.0,114250.0,0.7905275]
[1754400601325,0.3896022,114260.0,114250.0,1.25391444]
[1754400601826,0.3896022,114260.0,114250.0,0.7905275]
[1754400602021,0.3896022,114260.0,114250.0,1.25391444]
[1754400602623,0.21457,114260.0,114250.0,1.25391444]
[1754400603024,0.3896022,114260.0,114250.0,1.25391444]
[1754400603423,0.21457,114260.0,114250.0,1.25391444]
[1754400603723,0.05292,114260.0,114250.0,1.25391444]
[1754400603929,0.07825,114260.0,114250.0,1.25391444]
[1754400604325,0.0445984,114260.0,114250.0,1.25391444]
[1754400604530,0.0192684,114260.0,114250.0,1.25391444]
[1754400605329,0.0192684,114260.0,114250.0,0.63843444]
[1754400605524,0.0192684,114260.0,114250.0,1.25375444]
[1754400605525,0.0445984,114260.0,114250.0,1.25375444]
[1754400607419,0.0737184,114260.0,114250.0,0.63843444]
[1754400607625,0.3565606,114260.0,114250.0,0.63843444]
[1754400607824,0.81994754,114260.0,114250.0,0.7902875]
[1754400608222,0.81994754,114260.0,114250.0,0.1750475]
[1754400608424,0.2937629,114240.0,114230.0,0.3063693]
[1754400608633,0.80070984,114240.0,114230.0,0.8778002]
[1754400609723,0.80070984,114240.0,114230.0,0.2626002]
[1754400609935,0.80070984,114240.0,114230.0,0.8777602]
[1754400610135,0.80070984,114240.0,114230.0,0.8787602]
[1754400610935,0.80070984,114240.0,114230.0,0.8359911]
[1754400611128,0.80070984,114240.0,114230.0,0.61716]
[1754400611428,1.82671562,114240.0,114230.0,0.31386]
[1754400611634,1.85136148,114240.0,114230.0,0.31386]
[1754400612431,1.85136148,114240.0,114230.0,0.4889381]
[1754400612432,1.3004357,114240.0,114230.0,0.4889381]
[1754400612637,0.83704876,114240.0,114230.0,0.4889381]
[1754400612839,1.3004357,114240.0,114230.0,0.4889381]
[1754400613131,1.3004357,114240.0,114230.0,0.5145581]
[1754400613329,1.3004357,114240.0,114230.0,0.9356481]
[1754400613330,0.2675029,114240.0,114230.0,0.9356481]
[1754400613639,0.80070984,114240.0,114230.0,0.9356481]
[1754400614136,0.62564694,114240.0,114230.0,0.9356481]
[1754400614433,0.16226,114240.0,114230.0,0.9356481]
[1754400616236,0.16226,114240.0,114230.0,0.3205281]
[1754400616441,0.62564694,114240.0,114230.0,0.9356481]
[1754400616839,0.80070974,114240.0,114230.0,0.9356481]
[1754400617139,0.3373228,114240.0,114230.0,0.9356481]
[1754400618737,0.3373228,114240.0,114230.0,0.3205281]
[1754400618938,0.80070974,114240.0,114230.0,0.8157381]
[1754400619243,0.80070974,114240.0,114230.0,0.9355681]
[1754400619736,0.80070974,114240.0,114230.0,0.8074981]
[1754400620036,0.80070974,114240.0,114230.0,0.7901181]
[1754400620443,1.26409668,114240.0,114230.0,0.61504]
[1754400620642,1.73917668,114240.0,114230.0,0.61504]
[1754400621243,0.3373381,114230.0,114220.0,0.2909927]
[1754400621537,0.2675488,114210.0,114200.0,0.2949541]
[1754400621740,0.80075574,114210.0,114200.0,0.9099541]
[1754400622130,0.80075574,114210.0,114200.0,0.9355741]
[1754400622330,0.80075574,114210.0,114200.0,0.3205741]
[1754400622539,0.80075574,114210.0,114200.0,0.9355741]
[1754400623548,0.3373688,114210.0,114200.0,0.9355741]
[1754400623845,0.80075574,114210.0,114200.0,0.9355741]
[1754400624242,0.80075574,114210.0,114200.0,0.76345]
[1754400624442,0.3373688,114210.0,114200.0,0.9385741]
[1754400624645,0.80075574,114210.0,114200.0,0.9405741]
[1754400624843,0.80968281,114210.0,114200.0,0.9405741]
[1754400625751,0.80968281,114210.0,114200.0,0.76545]
[1754400625951,0.80968281,114210.0,114200.0,0.9405741]
[1754400626352,0.80968281,114210.0,114200.0,0.76545]
[1754400626647,0.80968281,114210.0,114200.0,0.68188]
[1754400627351,0.80968281,114210.0,114200.0,0.663]
[1754400627751,0.80968281,114210.0,114200.0,0.69213]
[1754400628053,0.80968281,114210.0,114200.0,0.73715]
[1754400631247,0.80968281,114210.0,114200.0,0.9405741]
[1754400631547,0.80968281,114210.0,114200.0,0.76545]
[1754400631953,0.80968281,114210.0,114200.0,0.9405741]
[1754400632653,0.80968281,114210.0,114200.0,0.76545]
[1754400633349,0.80968281,114210.0,114200.0,0.940574]
[1754400635755,0.80968281,114210.0,114200.0,0.76545]
[1754400636455,0.80968281,114210.0,114200.0,0.9405741]
[1754400636654,0.80968281,114210.0,114200.0,0.76545]
[1754400636853,0.80968281,114210.0,114200.0,0.66276]
[1754400637255,0.83434808,114210.0,114200.0,0.66276]
[1754400637647,0.83434808,114210.0,114200.0,0.005]
[1754400637851,1.77285502,114210.0,114200.0,0.005]
[1754400638051,1.86041686,114210.0,114200.0,1e-07]
[1754400638246,1.86041686,114210.0,114190.0,0.61472]
[1754400638247,0.2039641,114200.0,114190.0,0.61472]
[1754400638555,1.28541325,114200.0,114190.0,0.61472]
[1754400638750,1.46054926,114200.0,114190.0,0.61472]
[1754400639055,0.2398994,114190.0,114180.0,0.0252]
[1754400639260,0.82204161,114190.0,114180.0,0.61472]
[1754400639852,0.35865467,114190.0,114180.0,0.61472]
[1754400640054,0.82204161,114190.0,114180.0,0.63992]
[1754400640257,0.82204161,114190.0,114180.0,0.64192]
[1754400640556,0.82204161,114190.0,114180.0,0.65904]
[1754400640758,0.82304161,114190.0,114180.0,0.65704]
[1754400642552,0.82404161,114190.0,114180.0,0.61472]
[1754400644055,0.82404161,114190.0,114180.0,0.65704]
[1754400644953,0.79937634,114190.0,114180.0,0.65704]
[1754400645256,0.82402544,114190.0,114180.0,0.71493]
[1754400646452,0.3606385,114190.0,114180.0,0.7325]
[1754400646653,0.82402544,114190.0,114180.0,0.9076538]
[1754400647352,0.82402544,114190.0,114180.0,0.65704]
[1754400647557,0.79728544,114190.0,114180.0,0.9359639]
[1754400647953,0.82402544,114190.0,114180.0,0.3212439]
[1754400648152,0.82402544,114190.0,114180.0,0.9359239]
[1754400648358,0.82402544,114190.0,114180.0,0.76077]
[1754400650054,0.82402544,114190.0,114180.0,0.9359238]
[1754400650867,0.82402544,114190.0,114180.0,0.76077]
[1754400651058,0.82402544,114190.0,114180.0,0.9359238]
[1754400651255,0.82402544,114190.0,114180.0,0.76077]
[1754400651452,0.82402544,114190.0,114180.0,0.657]
[1754400651750,0.82402544,114190.0,114180.0,0.73246]
[1754400651955,0.82402544,114190.0,114180.0,0.9359238]
[1754400652364,0.82402544,114190.0,114180.0,0.3212438]
[1754400652564,0.82402544,114190.0,114180.0,0.76073]
[1754400653563,0.82402544,114190.0,114180.0,0.73245]
[1754400653764,0.82402544,114190.0,114180.0,0.70414]
[1754400654064,0.82402544,114190.0,114180.0,0.65696]
[1754400654264,0.82402544,114190.0,114180.0,0.8792937]
[1754400654470,0.82402544,114190.0,114180.0,0.9358837]
[1754400655164,0.3606385,114190.0,114180.0,0.9358837]
[1754400655364,0.79728544,114190.0,114180.0,0.9358837]
[1754400655564,0.82402544,114190.0,114180.0,0.9358837]
[1754400655765,0.82402544,114190.0,114180.0,0.76073]
[1754400655964,0.82402544,114190.0,114180.0,0.9358837]
[1754400656468,0.82402544,114190.0,114180.0,0.76073]
[1754400656660,0.82402544,114190.0,114180.0,0.76069]
[1754400657662,0.82402544,114190.0,114180.0,0.7041]
[1754400658170,0.82402544,114190.0,114180.0,0.63172]
[1754400658565,0.82402544,114190.0,114180.0,0.65692]
[1754400660071,0.82402544,114190.0,114180.0,0.6146]
[1754400660369,0.91648428,114190.0,114180.0,0.8320737]
[1754400660570,0.82402544,114190.0,114180.0,0.9358437]
[1754400660768,0.79728544,114190.0,114180.0,0.9358437]
[1754400661371,0.82402544,114190.0,114180.0,0.76069]
[1754400663770,0.82402544,114190.0,114180.0,0.68501]
[1754400664168,0.82402544,114190.0,114180.0,0.65692]
[1754400664667,0.3310337,114180.0,114170.0,0.08897]
[1754400664872,0.81906974,114180.0,114170.0,0.72916]
[1754400665667,0.81906974,114180.0,114170.0,0.75577]
[1754400665965,0.81906974,114180.0,114170.0,0.75677]
[1754400666166,0.2171028,114180.0,114170.0,0.9319389]
[1754400666474,0.1998028,114180.0,114170.0,0.9319389]
[1754400666767,0.66318974,114180.0,114170.0,0.9329389]
[1754400668672,0.1998028,114180.0,114170.0,0.9329389]
[1754400670972,0.66318974,114180.0,114170.0,0.9329389]
[1754400671173,0.77600974,114180.0,114170.0,0.9329389]
[1754400672871,0.70883974,114180.0,114170.0,0.9329389]
[1754400673068,0.1998027,114180.0,114170.0,1.39632584]
[1754400673274,0.1751536,114180.0,114170.0,1.39632584]
[1754400673675,0.1751536,114180.0,114170.0,0.9329389]
[1754400679179,0.3082832,114190.0,114180.0,0.3161935]
[1754400679378,0.04556,114190.0,114180.0,0.77958044]
[1754400679975,0.01849,114190.0,114180.0,1.07958044]
[1754400680177,0.1288,114200.0,114190.0,0.3105982]
[1754400680376,0.3039229,114200.0,114190.0,1.38842514]
[1754400680777,0.3294429,114200.0,114190.0,0.3105982]
[1754400681072,0.3039229,114200.0,114190.0,0.9250382]
[1754400681383,0.3049229,114200.0,114190.0,0.9250382]
[1754400681881,0.3744029,114200.0,114190.0,0.9250382]
[1754400682283,0.3744029,114200.0,114190.0,1.38842514]
[1754400683480,0.3999229,114200.0,114190.0,0.9250382]
[1754400684080,0.99271683,114200.0,114190.0,0.9250382]
[1754400684379,1.01852683,114200.0,114190.0,0.67727]
[1754400684576,1.01852683,114200.0,114190.0,0.61432]
[1754400685179,1.01852683,114200.0,114190.0,0.8614482]
[1754400685677,1.01852683,114200.0,114190.0,0.68631]
[1754400686686,1.01852683,114200.0,114190.0,0.9059582]
[1754400686885,0.99366984,114200.0,114190.0,0.9059582]
[1754400687087,1.01850915,114200.0,114190.0,0.9059582]
[1754400687286,0.92649984,114200.0,114190.0,0.9249182]
[1754400687487,0.96785984,114200.0,114190.0,0.9249182]
[1754400687686,0.99366984,114200.0,114190.0,0.9249182]
[1754400688187,0.5302829,114200.0,114190.0,0.9249182]
[1754400688487,0.99366984,114200.0,114190.0,0.9249182]
[1754400689084,0.99366984,114200.0,114190.0,0.9059582]
[1754400689285,0.55511204,114200.0,114190.0,0.9059582]
[1754400689485,1.01849898,114200.0,114190.0,0.9059582]
[1754400689886,0.88813898,114200.0,114190.0,0.9249182]
[1754400690086,0.92949898,114200.0,114190.0,0.9249182]
[1754400690486,1.01849898,114200.0,114190.0,0.9249182]
[1754400690986,1.01849898,114200.0,114190.0,0.9059582]
[1754400692790,1.01849898,114200.0,114190.0,0.8162982]
[1754400692990,1.01849898,114200.0,114190.0,0.2885682]
[1754400693192,1.01849898,114200.0,114190.0,0.9028082]
[1754400693695,1.01849898,114200.0,114190.0,0.63189]
[1754400694080,1.01849898,114200.0,114190.0,0.8070282]
[1754400694287,1.01849898,114200.0,114190.0,0.8338682]
[1754400694488,1.01849898,114200.0,114190.0,0.8594482]
[1754400694887,1.01849898,114200.0,114190.0,0.68431]
[1754400695293,1.01849898,114200.0,114190.0,0.8594482]
[1754400695488,0.2193682,114190.0,114180.0,0.3067786]
[1754400695682,0.79265514,114190.0,114180.0,0.9027305]
[1754400695887,0.3292682,114190.0,114180.0,0.9210505]
[1754400696088,0.3987793,114200.0,114190.0,0.3068882]
[1754400696290,0.19928,114200.0,114190.0,0.77027514]
[1754400696485,0.3744029,114200.0,114190.0,0.77027514]
[1754400696788,0.4224829,114200.0,114190.0,0.77027514]
[1754400697493,0.4234829,114200.0,114190.0,0.77027514]
[1754400697888,0.91123984,114200.0,114190.0,0.2885682]
[1754400698090,1.03899984,114200.0,114190.0,0.2885682]
[1754400698284,1.03899984,114200.0,114190.0,0.9027282]
[1754400698693,1.03899984,114200.0,114190.0,0.70065]
[1754400698894,1.03899984,114200.0,114190.0,0.67507]
[1754400699096,1.03899984,114200.0,114190.0,0.8502082]
[1754400699297,1.03899984,114200.0,114190.0,0.67507]
[1754400699690,0.92243984,114200.0,114190.0,0.8502082]
[1754400700097,0.92243984,114200.0,114190.0,0.9027282]
[1754400700393,0.3638229,114200.0,114190.0,0.9210482]
[1754400700594,0.3049229,114200.0,114190.0,0.67259514]
[1754400700801,0.4590529,114200.0,114190.0,0.8757481]
[1754400701099,0.4590529,114200.0,114190.0,0.9026881]
[1754400702092,0.3302529,114200.0,114190.0,0.9026881]
[1754400702298,0.3322529,114200.0,114190.0,0.9026881]
[1754400702599,0.2642329,114200.0,114190.0,0.9210081]
[1754400703296,0.3058729,114200.0,114190.0,0.9210081]
[1754400703791,0.3322529,114200.0,114190.0,0.9210081]
[1754400704595,0.3322529,114200.0,114190.0,0.9026881]
[1754400704798,0.87617509,114200.0,114190.0,0.9026881]
[1754400705202,0.3322529,114200.0,114190.0,0.9026881]
[1754400706092,0.3322529,114200.0,114190.0,0.9210081]
[1754400706300,0.2024929,114200.0,114190.0,0.9210081]
[1754400707096,0.2441329,114200.0,114190.0,0.9210081]
[1754400707898,0.2024929,114200.0,114190.0,0.9210081]
[1754400708496,0.2441329,114200.0,114190.0,0.9210081]
[1754400708697,0.3322529,114200.0,114190.0,0.9210081]
[1754400708901,0.3322529,114200.0,114190.0,0.9026881]
[1754400709200,0.3322529,114200.0,114190.0,0.9210081]
[1754400709401,0.2024929,114200.0,114190.0,0.9210081]
[1754400710098,0.3050429,114200.0,114190.0,0.9210081]
[1754400710298,0.3322529,114200.0,114190.0,0.9210081]
[1754400712104,0.35735949,114200.0,114190.0,0.9210081]
[1754400712305,0.3322529,114200.0,114190.0,0.9210081]
[1754400713107,0.35735932,114200.0,114190.0,0.9210081]
[1754400715711,0.35735932,114200.0,114190.0,0.3068881]
[1754400715908,0.90128151,114200.0,114190.0,0.9209281]
[1754400716105,0.35735932,114200.0,114190.0,0.9209281]
[1754400717006,0.90128151,114200.0,114190.0,0.9209281]
[1754400717606,0.35735932,114200.0,114190.0,0.9209281]
[1754400718407,0.35735932,114200.0,114190.0,0.3068881]
[1754400718812,0.35735932,114200.0,114190.0,0.9209281]
[1754400721407,0.35735932,114200.0,114190.0,0.3068874]
[1754400721603,0.35735932,114200.0,114190.0,0.9208874]
[1754400722617,0.82156867,114200.0,114190.0,0.9208874]
[1754400723114,0.79646225,114200.0,114190.0,0.9208874]
[1754400723310,0.3322529,114200.0,114190.0,0.9208874]
[1754400723518,0.35737025,114200.0,114190.0,0.9208874]
[1754400723913,0.8215796,114200.0,114190.0,0.9208874]
[1754400724118,0.35737025,114200.0,114190.0,0.9208874]
[1754400724418,0.1781229,114200.0,114190.0,1.38509675]
[1754400724715,0.2027329,114200.0,114190.0,0.9208874]
[1754400725111,0.2447229,114200.0,114190.0,0.3068874]
[1754400725316,0.82157645,114200.0,114190.0,0.9025674]
[1754400725711,0.82157645,114200.0,114190.0,0.9199674]
[1754400726320,0.79646225,114200.0,114190.0,0.9199674]
[1754400726718,0.3322529,114200.0,114190.0,0.9199674]
[1754400726920,0.3063729,114200.0,114190.0,0.9199674]
[1754400727216,0.07272,114210.0,114200.0,0.2678216]
[1754400727420,0.07272,114210.0,114200.0,0.76652095]
[1754400727616,0.03298,114210.0,114200.0,0.76652095]
[1754400728821,0.03498,114210.0,114200.0,0.76652095]
[1754400729217,0.00816,114210.0,114200.0,1.4058503]
[1754400729421,0.00816,114210.0,114200.0,1.7058503]
[1754400729615,0.01116,114210.0,114200.0,1.7058503]
[1754400729821,0.005,114210.0,114200.0,1.7058503]
[1754400731024,0.005,114210.0,114200.0,1.24164095]
[1754400732325,0.005,114210.0,114200.0,1.7058503]
[1754400732521,0.005,114210.0,114200.0,1.77695913]
[1754400733526,0.005,114210.0,114200.0,1.31274978]
[1754400733724,0.005,114210.0,114200.0,1.77695913]
[1754400734824,0.005,114210.0,114200.0,1.31274978]
[1754400736328,0.005,114210.0,114200.0,1.77695913]
[1754400737124,0.005,114210.0,114200.0,1.31274978]
[1754400737329,0.3342363,114210.0,114200.0,1.62658978]
[1754400738120,0.2663663,114210.0,114200.0,1.62658978]
[1754400738322,0.3083563,114210.0,114200.0,0.8987116]
[1754400738626,0.79844565,114210.0,114200.0,0.8987116]
[1754400739030,0.79844565,114210.0,114200.0,0.7889216]
[1754400739233,0.3292516,114200.0,114190.0,0.23842795]
[1754400739431,0.3292516,114200.0,114190.0,0.85222795]
[1754400740327,0.3292516,114200.0,114190.0,0.23842795]
[1754400740530,0.3302516,114200.0,114190.0,0.8327059]
[1754400740926,0.4178182,114200.0,114190.0,0.6138]
[1754400741127,0.329267,114190.0,114180.0,0.32603533]
[1754400741328,0.79347635,114190.0,114180.0,0.19468753]
[1754400741532,0.79347635,114190.0,114180.0,0.63333523]
[1754400741724,0.1751523,114180.0,114170.0,1.21124]
[1754400742032,0.79349165,114180.0,114170.0,1.82504]
[1754400742232,0.79349165,114180.0,114170.0,2.0002076]
[1754400742622,0.3292823,114180.0,114170.0,2.0002076]
[1754400743031,0.3292823,114180.0,114170.0,2.0012076]
[1754400743432,0.33801505,114180.0,114170.0,2.0012076]
[1754400743733,0.33801505,114180.0,114170.0,1.82604]
[1754400743932,0.8022244,114180.0,114170.0,1.82804]
[1754400744231,0.8022244,114180.0,114170.0,0.003]
[1754400744426,0.8022244,114180.0,114170.0,0.61684]
[1754400747733,0.46420935,114180.0,114170.0,0.61684]
[1754400748025,0.2368023,114180.0,114170.0,0.61684]
[1754400748227,0.70101165,114180.0,114170.0,0.003]
[1754400748435,0.70101165,114180.0,114170.0,0.61688]
[1754400749831,0.79349165,114180.0,114170.0,0.61688]
[1754400750025,0.79349165,114180.0,114170.0,0.003]
[1754400750240,0.79349165,114180.0,114170.0,0.61696]
[1754400751136,0.3292823,114180.0,114170.0,0.61696]
[1754400751336,0.3292823,114180.0,114170.0,0.8934776]
[1754400751527,0.3292823,114180.0,114170.0,0.74552]
[1754400751730,0.3292823,114180.0,114170.0,0.77092]
[1754400752133,0.3292823,114180.0,114170.0,0.74552]
[1754400752934,0.3292823,114180.0,114170.0,0.77197]
[1754400753340,0.3292823,114180.0,114170.0,0.61712]
[1754400753944,0.2208323,114180.0,114170.0,0.64357]
[1754400754241,0.2403923,114180.0,114170.0,0.64357]
[1754400754440,0.2403923,114180.0,114170.0,0.68343]
[1754400754643,0.2403923,114180.0,114170.0,0.64357]
[1754400754845,0.26534011,114180.0,114170.0,0.64357]
[1754400756040,0.1947123,114180.0,114170.0,1.41709695]
[1754400756239,0.2137123,114180.0,114170.0,1.41709695]
[1754400756436,0.28398617,114180.0,114170.0,1.41709695]
[1754400756739,0.07027387,114180.0,114170.0,1.41709695]
[1754400756945,0.3064857,114200.0,114190.0,0.2414569]
[1754400757137,0.33141993,114200.0,114190.0,1.41394625]
[1754400757333,0.0437759,114220.0,114210.0,0.1750926]
[1754400757544,0.0437759,114220.0,114210.0,1.41394195]
[1754400757545,0.27151817,114220.0,114210.0,1.41394195]
[1754400757842,0.13287496,114240.0,114230.0,0.3077056]
[1754400757843,0.1750664,114240.0,114230.0,0.3077056]
[1754400758040,0.18389105,114240.0,114230.0,1.41464495]
[1754400760142,0.18389105,114240.0,114230.0,0.9504356]
[1754400760448,0.1760664,114240.0,114230.0,1.41464495]
[1754400760746,0.1760664,114240.0,114230.0,0.9504356]
[1754400760934,0.1770664,114240.0,114230.0,1.49395815]
[1754400761541,0.07355924,114240.0,114230.0,1.49395815]
[1754400765450,0.002,114240.0,114230.0,0.9504356]
[1754400765651,0.002,114240.0,114230.0,1.49395815]
[1754400765843,0.06508,114240.0,114230.0,1.49395815]
[1754400768361,0.00864221,114250.0,114240.0,0.3356603]
[1754400768659,0.3563505,114270.0,114260.0,0.3356296]
[1754400768660,0.4215905,114270.0,114260.0,0.3356296]
[1754400768850,0.4215905,114270.0,114260.0,0.9503896]
[1754400769857,0.44601633,114270.0,114260.0,0.9503896]
[1754400770663,0.28368543,114270.0,114260.0,0.9503896]
[1754400770962,0.36734802,114270.0,114260.0,0.9503896]
[1754400771262,0.4404124,114270.0,114260.0,0.9503896]
[1754400771655,0.5411324,114270.0,114260.0,0.9503896]
[1754400772055,0.51670657,114270.0,114260.0,0.9503896]
[1754400772460,0.51670657,114270.0,114260.0,0.8561096]
[1754400772660,0.51670657,114270.0,114260.0,0.9503896]
[1754400772960,0.51870657,114270.0,114260.0,0.9503896]
[1754400773357,0.51638126,114270.0,114260.0,0.9503896]
[1754400773556,1.05990381,114270.0,114260.0,0.7899496]
[1754400773752,1.05990381,114270.0,114250.0,0.2255567]
[1754400773960,0.87761225,114260.0,114250.0,0.2413548]
[1754400774160,0.87761225,114260.0,114250.0,0.8562748]
[1754400774464,0.87761225,114260.0,114250.0,0.8827248]
[1754400774664,0.3340897,114260.0,114250.0,0.8827248]
[1754400774858,0.3340897,114260.0,114250.0,0.9225848]
[1754400775059,0.3340897,114260.0,114250.0,0.9505548]
[1754400775256,0.35829862,114260.0,114250.0,0.1750348]
[1754400775458,0.36129862,114260.0,114250.0,0.7899148]
[1754400776061,0.36329862,114260.0,114250.0,0.8758648]
[1754400776261,0.36329862,114260.0,114250.0,0.9038348]
[1754400776465,0.36329862,114260.0,114250.0,0.9211748]
[1754400776764,0.36329862,114260.0,114250.0,0.9505148]
[1754400776954,0.11856892,114260.0,114250.0,1.49403735]
[1754400777155,0.09436,114260.0,114250.0,1.49403735]
[1754400777767,0.2693897,114260.0,114250.0,0.9505148]
[1754400777959,0.4284497,114260.0,114250.0,0.9505148]
[1754400779059,0.4284497,114260.0,114250.0,0.3356348]
[1754400779262,0.4284497,114260.0,114250.0,0.9503148]
[1754400779464,0.09436,114260.0,114250.0,0.3356348]
[1754400779667,0.09436,114260.0,114250.0,0.9502748]
[1754400779863,0.09436,114260.0,114250.0,1.49379735]
[1754400781656,0.00884259,114270.0,114260.0,0.3076601]
[1754400781856,0.03238,114280.0,114270.0,0.3500236]
[1754400782063,0.05660318,114280.0,114270.0,1.53112615]
[1754400782261,0.03238,114280.0,114270.0,0.9876036]
[1754400782463,0.0156234,114280.0,114270.0,1.53112615]
[1754400782664,0.2073492,114300.0,114280.0,0.1749914]
[1754400782870,0.05660521,114300.0,114290.0,1.25833075]
[1754400783072,0.09833521,114300.0,114290.0,0.7148082]
[1754400783363,0.3431657,114300.0,114290.0,0.7148082]
[1754400783572,0.4533657,114300.0,114290.0,0.7148082]
[1754400783772,1.08532825,114300.0,114290.0,0.7148082]
[1754400784066,0.5418057,114300.0,114290.0,0.7148082]
[1754400784468,0.55965204,114300.0,114290.0,0.7148082]
[1754400785165,0.56065204,114300.0,114290.0,0.7148082]
[1754400786272,0.23375324,114300.0,114290.0,0.7148082]
[1754400786671,0.40872204,114300.0,114290.0,0.7148082]
[1754400786872,0.47221204,114300.0,114290.0,0.7148082]
[1754400787171,0.28790204,114300.0,114290.0,0.7148082]
[1754400787373,0.32028204,114300.0,114290.0,0.7148082]
[1754400787873,0.43790204,114300.0,114290.0,0.7148082]
[1754400788068,0.28790204,114300.0,114290.0,0.7148082]
[1754400788264,0.14531324,114300.0,114290.0,1.25833075]
[1754400788463,0.14631324,114300.0,114290.0,1.25833075]
[1754400789066,0.04407155,114300.0,114290.0,1.25833075]
[1754400789667,0.02822521,114300.0,114290.0,1.25833075]
[1754400791770,0.02822521,114300.0,114290.0,2.1018533]
[1754400791970,0.03238,114340.0,114330.0,0.42470655]
[1754400792268,0.11924374,114340.0,114330.0,1.25775725]
[1754400792573,0.10881387,114370.0,114350.0,0.0560521]
[1754400792574,0.17143999,114370.0,114350.0,0.0560521]
[1754400792868,0.06262612,114370.0,114360.0,0.7894278]
[1754400793075,0.24278727,114380.0,114370.0,0.1748606]
[1754400793272,0.1748606,114370.0,114360.0,0.8331416]
[1754400793472,0.2489859,114360.0,114350.0,0.2186047]
[1754400793769,0.10676,114360.0,114350.0,0.8334447]
[1754400794276,0.03238,114360.0,114350.0,0.8334447]
[1754400794672,0.2778276,114370.0,114360.0,0.1748762]
[1754400794979,0.3845876,114370.0,114360.0,0.1748762]
[1754400795371,0.1748762,114360.0,114350.0,0.2186048]
[1754400795574,0.2816515,114350.0,114340.0,1.3855731]
[1754400795877,0.2816515,114350.0,114340.0,2.0007331]
[1754400796081,0.2816515,114350.0,114340.0,2.0008531]
[1754400796573,0.2492868,114340.0,114330.0,0.2186429]
[1754400796778,0.82518935,114340.0,114330.0,0.7901526]
[1754400796970,0.07411,114350.0,114340.0,0.2623571]
[1754400797177,0.3408673,114370.0,114360.0,0.1748766]
[1754400797472,0.2816302,114370.0,114360.0,0.7901966]
[1754400797778,0.07411,114370.0,114360.0,0.7901966]
[1754400798171,0.10111861,114380.0,114370.0,0.1748613]
[1754400798367,0.03238,114380.0,114370.0,0.1748613]
[1754400798571,0.04173,114390.0,114370.0,0.1748613]
[1754400798572,0.04826521,114390.0,114380.0,0.099692]
[1754400798775,0.03238,114400.0,114390.0,0.0437067]
[1754400798977,0.2071954,114400.0,114390.0,0.3059493]
[1754400799178,0.2815754,114400.0,114390.0,0.2622426]
[1754400799679,0.2815754,114400.0,114390.0,0.2185359]
[1754400799975,0.2815754,114400.0,114380.0,0.0874206]
[1754400799976,0.174846,114380.0,114370.0,0.1311437]
[1754400800173,0.03238,114380.0,114370.0,0.9674801]
[1754400800368,0.1748155,114400.0,114380.0,0.174846]
[1754400800569,0.2071955,114400.0,114390.0,0.7929107]
[1754400800774,0.03238,114400.0,114390.0,0.7929107]
[1754400801071,0.03238,114400.0,114390.0,0.7938307]
[1754400801377,0.01549515,114410.0,114390.0,0.7501166]
[1754400801583,0.03238,114420.0,114410.0,0.1432911]
[1754400801771,0.03238,114420.0,114410.0,0.9370914]
[1754400802077,0.03238,114420.0,114410.0,0.9373314]
[1754400802375,0.2488935,114420.0,114410.0,0.8814373]
[1754400802569,0.2815435,114420.0,114410.0,0.8814373]
[1754400802769,0.2815435,114420.0,114410.0,0.1748003]
[1754400802969,0.2825435,114420.0,114410.0,0.7964803]
[1754400803175,0.06603,114420.0,114410.0,0.7964803]
[1754400803372,0.001,114420.0,114410.0,1.34000285]
[1754400803770,0.001,114420.0,114410.0,0.7964803]
[1754400803973,0.02427588,114420.0,114410.0,0.7964803]
[1754400804172,0.02427588,114420.0,114410.0,1.34000285]
[1754400804370,0.2184991,114410.0,114400.0,0.1748146]
[1754400804570,0.1748146,114400.0,114380.0,0.80577565]
[1754400804778,0.2508999,114400.0,114390.0,0.8001499]
[1754400804979,0.2071946,114400.0,114390.0,0.8001499]
[1754400805178,0.2071946,114400.0,114380.0,0.67465135]
[1754400805179,0.1748297,114390.0,114380.0,0.2185427]
[1754400805480,0.03238,114390.0,114380.0,0.8002741]
[1754400805885,0.5394893,114420.0,114410.0,0.1747992]
[1754400806073,0.18248846,114420.0,114410.0,0.1747992]
[1754400806380,0.15010846,114420.0,114410.0,1.34416175]
[1754400806884,0.15010846,114420.0,114410.0,0.8006392]
[1754400807077,0.18248846,114420.0,114410.0,0.8006392]
[1754400807676,0.15110846,114420.0,114410.0,0.8006392]
[1754400807878,0.15110846,114420.0,114410.0,1.34416175]
[1754400808476,0.15110846,114420.0,114410.0,0.8006392]
[1754400808784,0.15110846,114420.0,114410.0,1.34416175]
[1754400809278,0.12784,114420.0,114410.0,1.85602175]
[1754400809483,0.0166531,114420.0,114410.0,1.85602175]
[1754400809679,0.0166531,114420.0,114410.0,1.85994175]
[1754400809880,0.0166531,114420.0,114410.0,0.6866592]
[1754400810079,0.0490331,114420.0,114410.0,0.75538175]
[1754400810277,0.2238167,114420.0,114410.0,0.2002192]
[1754400810481,0.24708798,114420.0,114410.0,0.8314992]
[1754400810778,0.2981967,114420.0,114410.0,0.2002192]
[1754400810979,0.2825436,114420.0,114410.0,0.02542]
[1754400811188,0.2815436,114420.0,114410.0,0.65698]
[1754400811375,0.10776,114420.0,114410.0,0.8317788]
[1754400811575,0.03338,114420.0,114410.0,0.8317788]
[1754400811787,0.2081636,114420.0,114410.0,0.8330288]
[1754400812285,0.2081636,114420.0,114410.0,0.65823]
[1754400812476,0.3105336,114420.0,114410.0,0.02542]
[1754400812784,0.3173088,114410.0,114400.0,1.21167]
[1754400812982,0.3173088,114410.0,114400.0,1.84466]
[1754400813183,0.08151,114410.0,114400.0,2.0194741]
[1754400813382,0.2149236,114420.0,114410.0,0.1793888]
[1754400813786,0.04014,114420.0,114410.0,0.72291135]
[1754400814290,0.2149237,114420.0,114410.0,0.00459]
[1754400814589,0.2759237,114420.0,114410.0,0.00334]
[1754400814883,0.2149237,114420.0,114410.0,0.1781389]
[1754400815088,0.1747837,114420.0,114410.0,0.1793889]
[1754400815285,0.419322,114430.0,114420.0,0.1781237]
[1754400815486,0.419322,114430.0,114420.0,0.8103237]
[1754400815688,0.2882284,114430.0,114420.0,1.35509625]